[Event "Early-Titled-Tuesday-Blitz-January-16-2024"]
[Site "Chess.com"]
[Date "2024.01.16"]
[Round "9"]
[White "tusplingher"]
[Black "RodokininEV"]
[Result "0-1"]
[WhiteElo "2479"]
[BlackElo "2610"]
[TimeControl "180+1"]
[EndTime "9:46:27 PST"]
[Termination "RodokininEV won by resignation"]

1. e4 {[%clk 0:02:44.5]} 1... e6 {[%clk 0:02:59.9]} 2. d4 {[%clk 0:02:42.9]}
2... d5 {[%clk 0:03:00.2]} 3. Nc3 {[%clk 0:02:41.6]} 3... Bb4 {[%clk 0:02:58]}
4. Ne2 {[%clk 0:02:38.4]} 4... Nc6 {[%clk 0:02:56.7]} 5. a3 {[%clk 0:02:33.2]}
5... Ba5 {[%clk 0:02:52.2]} 6. b4 {[%clk 0:02:27.2]} 6... Bb6 {[%clk 0:02:51.7]}
7. e5 {[%clk 0:02:25.3]} 7... f6 {[%clk 0:02:49.4]} 8. exf6 {[%clk 0:02:13.9]}
8... Nxf6 {[%clk 0:02:50.3]} 9. g3 {[%clk 0:02:13.9]} 9... e5 {[%clk 0:02:47.8]}
10. Bg2 {[%clk 0:01:56.3]} 10... Nxd4 {[%clk 0:02:45.7]} 11. O-O {[%clk
0:01:50.1]} 11... O-O {[%clk 0:02:44.3]} 12. h3 {[%clk 0:01:29]} 12... c6 {[%clk
0:02:40.2]} 13. Na4 {[%clk 0:01:26.3]} 13... Nxe2+ {[%clk 0:02:36.4]} 14. Qxe2
{[%clk 0:01:25.5]} 14... Bc7 {[%clk 0:02:37.3]} 15. Bb2 {[%clk 0:01:24.7]} 15...
Qe7 {[%clk 0:02:33.4]} 16. Rfe1 {[%clk 0:01:23.1]} 16... e4 {[%clk 0:02:30.9]}
17. Nc5 {[%clk 0:01:21]} 17... h5 {[%clk 0:02:25.6]} 18. c4 {[%clk 0:01:14.6]}
18... h4 {[%clk 0:02:23.9]} 19. g4 {[%clk 0:01:03.7]} 19... Qd6 {[%clk
0:02:20.4]} 20. Red1 {[%clk 0:00:56.9]} 20... Qh2+ {[%clk 0:02:11.5]} 21. Kf1
{[%clk 0:00:55.9]} 21... Nxg4 {[%clk 0:02:10.4]} 22. Bd4 {[%clk 0:00:35.4]}
22... e3 {[%clk 0:02:01.6]} 23. Bxe3 {[%clk 0:00:29.9]} 23... Nxe3+ {[%clk
0:02:01.4]} 24. Qxe3 {[%clk 0:00:29.4]} 24... Bg3 {[%clk 0:02:00.5]} 25. Ra2
{[%clk 0:00:20.5]} 25... Bxh3 {[%clk 0:01:56.4]} 26. f3 {[%clk 0:00:11.1]} 26...
Qh1+ {[%clk 0:01:53.8]} 27. Qg1 {[%clk 0:00:11.2]} 27... Rxf3+ {[%clk
0:01:50.3]} 28. Ke2 {[%clk 0:00:10.3]} 28... Qxg1 {[%clk 0:01:38.7]} 29. Rxg1
{[%clk 0:00:09.5]} 29... Rf2+ {[%clk 0:01:39.1]} 30. Kd3 {[%clk 0:00:09.8]}
30... Bf5+ {[%clk 0:01:37.3]} 31. Kc3 {[%clk 0:00:08.6]} 31... Rxa2 {[%clk
0:01:35.4]} 32. Rf1 {[%clk 0:00:09.3]} 32... Rf2 {[%clk 0:01:34.4]} 0-1

[Event "Early-Titled-Tuesday-Blitz-January-16-2024"]
[Site "Chess.com"]
[Date "2024.01.16"]
[Round "9"]
[White "AldokhinIvan"]
[Black "Happy1712Drummer"]
[Result "0-1"]
[WhiteElo "2588"]
[BlackElo "2490"]
[TimeControl "180+1"]
[EndTime "9:46:28 PST"]
[Termination "Happy1712Drummer won on time"]

1. d4 {[%clk 0:02:58.3]} 1... e6 {[%clk 0:02:49.9]} 2. c4 {[%clk 0:02:57.4]}
2... Nf6 {[%clk 0:02:49.2]} 3. Nc3 {[%clk 0:02:56.9]} 3... Bb4 {[%clk 0:02:48]}
4. f3 {[%clk 0:02:57.1]} 4... d5 {[%clk 0:02:46.4]} 5. a3 {[%clk 0:02:55.9]}
5... Be7 {[%clk 0:02:42.8]} 6. e3 {[%clk 0:02:48]} 6... O-O {[%clk 0:02:35]} 7.
Bd3 {[%clk 0:02:46.4]} 7... c5 {[%clk 0:02:33.8]} 8. Nge2 {[%clk 0:02:26.1]}
8... cxd4 {[%clk 0:02:31.9]} 9. exd4 {[%clk 0:02:23.7]} 9... dxc4 {[%clk
0:02:31.5]} 10. Bxc4 {[%clk 0:02:22.4]} 10... b6 {[%clk 0:02:30]} 11. O-O {[%clk
0:01:37.1]} 11... Ba6 {[%clk 0:02:26.1]} 12. Bxa6 {[%clk 0:01:14]} 12... Nxa6
{[%clk 0:02:27]} 13. Qd3 {[%clk 0:01:12.6]} 13... Nc7 {[%clk 0:02:17.2]} 14. Be3
{[%clk 0:01:02.7]} 14... Qd7 {[%clk 0:02:10.9]} 15. Rad1 {[%clk 0:01:01.5]}
15... Rfd8 {[%clk 0:02:09.6]} 16. Rfe1 {[%clk 0:00:52.4]} 16... Rac8 {[%clk
0:02:08.6]} 17. Nf4 {[%clk 0:00:31.9]} 17... h6 {[%clk 0:02:03.9]} 18. Kh1
{[%clk 0:00:31.6]} 18... Bf8 {[%clk 0:01:55.8]} 19. Rd2 {[%clk 0:00:27.7]} 19...
Ncd5 {[%clk 0:01:44.3]} 20. Nfxd5 {[%clk 0:00:17.8]} 20... Nxd5 {[%clk
0:01:45.2]} 21. Nxd5 {[%clk 0:00:11.6]} 21... Qxd5 {[%clk 0:01:46.1]} 22. Red1
{[%clk 0:00:11.2]} 22... b5 {[%clk 0:01:38.2]} 23. Rc2 {[%clk 0:00:07.1]} 23...
Rc4 {[%clk 0:01:35.5]} 24. Rxc4 {[%clk 0:00:05.4]} 24... bxc4 {[%clk 0:01:36.4]}
25. Qc3 {[%clk 0:00:04.3]} 25... Rb8 {[%clk 0:01:31.4]} 26. Rc1 {[%clk
0:00:01.3]} 26... Rb3 {[%clk 0:01:30.5]} 0-1

[Event "Early-Titled-Tuesday-Blitz-January-16-2024"]
[Site "Chess.com"]
[Date "2024.01.16"]
[Round "9"]
[White "vi_pranav"]
[Black "Goryachkina"]
[Result "0-1"]
[WhiteElo "3007"]
[BlackElo "2696"]
[TimeControl "180+1"]
[EndTime "9:46:36 PST"]
[Termination "Goryachkina won by resignation"]

1. e4 {[%clk 0:03:00.9]} 1... c5 {[%clk 0:02:59.5]} 2. Nf3 {[%clk 0:03:01.4]}
2... e6 {[%clk 0:02:59.8]} 3. b3 {[%clk 0:03:01.6]} 3... Nc6 {[%clk 0:02:54.9]}
4. Bb2 {[%clk 0:03:01.6]} 4... Nf6 {[%clk 0:02:54.2]} 5. e5 {[%clk 0:03:00.3]}
5... Nd5 {[%clk 0:02:48.4]} 6. Nc3 {[%clk 0:02:59.9]} 6... Nxc3 {[%clk 0:02:43]}
7. dxc3 {[%clk 0:03:00.8]} 7... Qc7 {[%clk 0:02:40.7]} 8. Qe2 {[%clk 0:02:57.2]}
8... h6 {[%clk 0:02:39]} 9. h4 {[%clk 0:02:56.6]} 9... b6 {[%clk 0:02:38.5]} 10.
O-O-O {[%clk 0:02:55.4]} 10... Bb7 {[%clk 0:02:38.6]} 11. h5 {[%clk 0:02:56.1]}
11... O-O-O {[%clk 0:02:37.3]} 12. c4 {[%clk 0:02:45.8]} 12... Be7 {[%clk
0:02:36.7]} 13. Kb1 {[%clk 0:02:44]} 13... Rhe8 {[%clk 0:02:31.8]} 14. Rh3
{[%clk 0:02:42.7]} 14... f5 {[%clk 0:02:20]} 15. Nh4 {[%clk 0:02:37.7]} 15...
Nd4 {[%clk 0:02:10.6]} 16. Bxd4 {[%clk 0:02:22.4]} 16... cxd4 {[%clk 0:02:10.9]}
17. Rxd4 {[%clk 0:02:23.2]} 17... Bc5 {[%clk 0:02:09]} 18. Rd1 {[%clk 0:02:20]}
18... d6 {[%clk 0:02:08.1]} 19. exd6 {[%clk 0:02:19.6]} 19... Bxd6 {[%clk
0:02:04.2]} 20. Ng6 {[%clk 0:02:00.3]} 20... Kb8 {[%clk 0:01:50.5]} 21. Rhd3
{[%clk 0:01:45.7]} 21... Be4 {[%clk 0:01:46.8]} 22. Rd4 {[%clk 0:01:44.3]} 22...
Bc5 {[%clk 0:01:21.6]} 23. Rxd8+ {[%clk 0:01:38.2]} 23... Rxd8 {[%clk
0:01:21.6]} 24. Rxd8+ {[%clk 0:01:28.4]} 24... Qxd8 {[%clk 0:01:21.6]} 25. f3
{[%clk 0:01:29.1]} 25... Qd4 {[%clk 0:01:04]} 0-1

[Event "Early-Titled-Tuesday-Blitz-January-16-2024"]
[Site "Chess.com"]
[Date "2024.01.16"]
[Round "9"]
[White "McCarthyStone"]
[Black "pooh2012"]
[Result "0-1"]
[WhiteElo "2296"]
[BlackElo "2521"]
[TimeControl "180+1"]
[EndTime "9:46:36 PST"]
[Termination "pooh2012 won by resignation"]

1. Nf3 {[%clk 0:03:00.5]} 1... Nf6 {[%clk 0:02:58.1]} 2. b3 {[%clk 0:02:59.3]}
2... a5 {[%clk 0:02:57]} 3. a4 {[%clk 0:02:52.7]} 3... d6 {[%clk 0:02:55.6]} 4.
Bb2 {[%clk 0:02:52.7]} 4... Nbd7 {[%clk 0:02:54.5]} 5. g3 {[%clk 0:02:52.7]}
5... c6 {[%clk 0:02:53.7]} 6. Bg2 {[%clk 0:02:53.1]} 6... g6 {[%clk 0:02:53.6]}
7. O-O {[%clk 0:02:53.7]} 7... Bg7 {[%clk 0:02:53.9]} 8. d4 {[%clk 0:02:53.9]}
8... O-O {[%clk 0:02:54.4]} 9. Nbd2 {[%clk 0:02:53.2]} 9... Qc7 {[%clk
0:02:52.8]} 10. e4 {[%clk 0:02:44.5]} 10... Re8 {[%clk 0:02:33.3]} 11. Re1
{[%clk 0:02:42.2]} 11... e5 {[%clk 0:02:31.3]} 12. Nc4 {[%clk 0:02:39.3]} 12...
exd4 {[%clk 0:01:51.4]} 13. Nxd4 {[%clk 0:02:28.2]} 13... Nc5 {[%clk 0:01:36.9]}
14. f3 {[%clk 0:02:20.4]} 14... Rd8 {[%clk 0:01:15.2]} 15. Qe2 {[%clk
0:02:16.5]} 15... Be6 {[%clk 0:01:10.7]} 16. Nxe6 {[%clk 0:02:15.7]} 16... Nxe6
{[%clk 0:01:09.3]} 17. Rad1 {[%clk 0:02:13.7]} 17... d5 {[%clk 0:01:08.5]} 18.
exd5 {[%clk 0:02:12.1]} 18... Nxd5 {[%clk 0:01:05.4]} 19. Bxg7 {[%clk 0:02:13]}
19... Kxg7 {[%clk 0:01:04.1]} 20. c3 {[%clk 0:01:51.9]} 20... b5 {[%clk
0:00:57.4]} 21. axb5 {[%clk 0:01:43.7]} 21... cxb5 {[%clk 0:00:58.3]} 22. f4
{[%clk 0:01:40.3]} 22... bxc4 {[%clk 0:00:47.2]} 23. Bxd5 {[%clk 0:01:39.2]}
23... Qc5+ {[%clk 0:00:45.7]} 24. Kg2 {[%clk 0:01:34]} 24... Rxd5 {[%clk
0:00:43.5]} 25. Rxd5 {[%clk 0:01:27.3]} 25... Qxd5+ {[%clk 0:00:43.3]} 26. Kh3
{[%clk 0:01:27.3]} 26... cxb3 {[%clk 0:00:41.7]} 27. c4 {[%clk 0:01:27.8]} 27...
Qf5+ {[%clk 0:00:36.9]} 28. Kg2 {[%clk 0:01:27]} 28... Qc2 {[%clk 0:00:33]} 29.
Qxc2 {[%clk 0:01:26.5]} 29... bxc2 {[%clk 0:00:33]} 30. Rc1 {[%clk 0:01:27.4]}
30... Nd4 {[%clk 0:00:32.7]} 31. Kf2 {[%clk 0:01:27]} 31... Re8 {[%clk
0:00:32.3]} 32. c5 {[%clk 0:01:26.8]} 32... a4 {[%clk 0:00:32.2]} 33. c6 {[%clk
0:01:27.1]} 33... a3 {[%clk 0:00:30.1]} 34. c7 {[%clk 0:01:27.6]} 34... a2
{[%clk 0:00:30.1]} 35. Ra1 {[%clk 0:01:27.4]} 35... Nb3 {[%clk 0:00:26.9]} 36.
Rxa2 {[%clk 0:01:23.7]} 36... c1=Q {[%clk 0:00:26.7]} 37. Re2 {[%clk 0:01:24.6]}
37... Rxe2+ {[%clk 0:00:23.4]} 38. Kxe2 {[%clk 0:01:25.5]} 38... Qxc7 {[%clk
0:00:23.3]} 0-1

[Event "Early-Titled-Tuesday-Blitz-January-16-2024"]
[Site "Chess.com"]
[Date "2024.01.16"]
[Round "9"]
[White "whitemirrorninja"]
[Black "Buzhizhebuguai"]
[Result "0-1"]
[WhiteElo "2502"]
[BlackElo "2676"]
[TimeControl "180+1"]
[EndTime "9:46:39 PST"]
[Termination "Buzhizhebuguai won by resignation"]

1. b3 {[%clk 0:03:00.9]} 1... d5 {[%clk 0:02:03]} 2. Bb2 {[%clk 0:03:01.8]} 2...
c6 {[%clk 0:02:02.5]} 3. c4 {[%clk 0:03:01.4]} 3... Nf6 {[%clk 0:02:00.2]} 4.
Nf3 {[%clk 0:03:01.5]} 4... Bf5 {[%clk 0:01:58.1]} 5. e3 {[%clk 0:03:01.4]} 5...
e6 {[%clk 0:01:58.5]} 6. Nc3 {[%clk 0:03:00.5]} 6... Nbd7 {[%clk 0:01:58.3]} 7.
Be2 {[%clk 0:02:58.8]} 7... h6 {[%clk 0:01:58.8]} 8. O-O {[%clk 0:02:57.5]} 8...
Bd6 {[%clk 0:01:59]} 9. Rc1 {[%clk 0:02:55.8]} 9... O-O {[%clk 0:01:53.6]} 10.
d3 {[%clk 0:02:56.2]} 10... Bh7 {[%clk 0:01:53.3]} 11. Re1 {[%clk 0:02:50.9]}
11... a5 {[%clk 0:01:52.1]} 12. Bf1 {[%clk 0:02:46.3]} 12... Qe7 {[%clk
0:01:50.9]} 13. Rc2 {[%clk 0:02:41.7]} 13... Nc5 {[%clk 0:01:47.8]} 14. Rce2
{[%clk 0:02:34.5]} 14... Rfd8 {[%clk 0:01:45.6]} 15. Rd2 {[%clk 0:02:33.4]}
15... Qf8 {[%clk 0:01:39.3]} 16. d4 {[%clk 0:02:25.5]} 16... Nce4 {[%clk
0:01:37.8]} 17. Nxe4 {[%clk 0:02:26.2]} 17... Nxe4 {[%clk 0:01:38.4]} 18. Rde2
{[%clk 0:02:26.9]} 18... a4 {[%clk 0:01:38.1]} 19. Nd2 {[%clk 0:02:15.2]} 19...
Bb4 {[%clk 0:01:37.1]} 20. Nxe4 {[%clk 0:02:04.4]} 20... Bxe4 {[%clk 0:01:37.5]}
21. f3 {[%clk 0:02:00]} 21... Bh7 {[%clk 0:01:37.1]} 22. bxa4 {[%clk 0:01:55.6]}
22... Bxe1 {[%clk 0:01:32.4]} 23. Rxe1 {[%clk 0:01:54.8]} 23... Qb4 {[%clk
0:01:32.3]} 24. Re2 {[%clk 0:01:39]} 24... Qxc4 {[%clk 0:01:28.7]} 25. Qb3
{[%clk 0:01:32.6]} 25... Qxa4 {[%clk 0:01:16.1]} 26. Qxb7 {[%clk 0:01:32.4]}
26... Rdb8 {[%clk 0:01:14.9]} 27. Qd7 {[%clk 0:01:27.8]} 27... Bd3 {[%clk
0:01:13.7]} 28. Rd2 {[%clk 0:01:21.9]} 28... Bxf1 {[%clk 0:01:13.6]} 29. Kxf1
{[%clk 0:01:22.8]} 29... Qc4+ {[%clk 0:01:13.6]} 30. Kf2 {[%clk 0:01:17.9]}
30... Rxa2 {[%clk 0:01:13.2]} 31. Bc3 {[%clk 0:01:13.1]} 31... Rxd2+ {[%clk
0:01:10]} 32. Bxd2 {[%clk 0:01:14]} 32... Rb2 {[%clk 0:01:10.3]} 33. Qe8+ {[%clk
0:01:01.6]} 33... Kh7 {[%clk 0:01:09.1]} 34. Qxf7 {[%clk 0:01:02.1]} 34... Rxd2+
{[%clk 0:01:07.9]} 35. Kg3 {[%clk 0:01:02.9]} 35... Qc2 {[%clk 0:01:05.3]} 36.
Qxe6 {[%clk 0:00:53.3]} 36... Rxg2+ {[%clk 0:01:04]} 37. Kf4 {[%clk 0:00:52.8]}
37... Qg6 {[%clk 0:01:03.1]} 38. Qe7 {[%clk 0:00:50.8]} 38... Qf6+ {[%clk
0:01:03]} 0-1

[Event "Early-Titled-Tuesday-Blitz-January-16-2024"]
[Site "Chess.com"]
[Date "2024.01.16"]
[Round "9"]
[White "igorkovalenko"]
[Black "pavet"]
[Result "1/2-1/2"]
[WhiteElo "2984"]
[BlackElo "2785"]
[TimeControl "180+1"]
[EndTime "9:46:41 PST"]
[Termination "Game drawn by repetition"]

1. e4 {[%clk 0:03:00.9]} 1... e5 {[%clk 0:02:59.8]} 2. Nf3 {[%clk 0:03:00.6]}
2... Nc6 {[%clk 0:03:00.2]} 3. Bb5 {[%clk 0:03:00.3]} 3... a6 {[%clk 0:03:00.4]}
4. Ba4 {[%clk 0:03:00]} 4... Nf6 {[%clk 0:03:00.8]} 5. O-O {[%clk 0:02:58.4]}
5... b5 {[%clk 0:03:00.9]} 6. Bb3 {[%clk 0:02:58.5]} 6... Bb7 {[%clk 0:03:01.5]}
7. a4 {[%clk 0:02:53.9]} 7... Bc5 {[%clk 0:03:01.1]} 8. d3 {[%clk 0:02:49.1]}
8... d6 {[%clk 0:02:55.2]} 9. axb5 {[%clk 0:02:43.7]} 9... axb5 {[%clk
0:02:54.8]} 10. Rxa8 {[%clk 0:02:44.6]} 10... Bxa8 {[%clk 0:02:54.4]} 11. Nc3
{[%clk 0:02:45.2]} 11... b4 {[%clk 0:02:54.6]} 12. Nd5 {[%clk 0:02:45.3]} 12...
Nxd5 {[%clk 0:02:52]} 13. Bxd5 {[%clk 0:02:46.2]} 13... Ne7 {[%clk 0:02:52]} 14.
Bb3 {[%clk 0:02:42.3]} 14... O-O {[%clk 0:02:49.1]} 15. Kh1 {[%clk 0:02:40.3]}
15... Ng6 {[%clk 0:02:44]} 16. Ng5 {[%clk 0:02:32.2]} 16... h6 {[%clk
0:02:37.6]} 17. Qh5 {[%clk 0:02:31.9]} 17... d5 {[%clk 0:02:02.9]} 18. Nxf7
{[%clk 0:02:16.8]} 18... Kxf7 {[%clk 0:01:30.3]} 19. f4 {[%clk 0:02:16.2]} 19...
exf4 {[%clk 0:01:25.5]} 20. Rxf4+ {[%clk 0:02:13.6]} 20... Kg8 {[%clk 0:01:20]}
21. Qxg6 {[%clk 0:02:09.5]} 21... Bd6 {[%clk 0:01:13.5]} 22. Rf5 {[%clk
0:01:59.7]} 22... Rxf5 {[%clk 0:01:10.1]} 23. Qxf5 {[%clk 0:01:44.6]} 23... Qh4
{[%clk 0:01:09.6]} 24. g3 {[%clk 0:01:35.3]} 24... Bxg3 {[%clk 0:01:00.4]} 25.
h3 {[%clk 0:01:33.5]} 25... Bd6 {[%clk 0:00:40.7]} 26. Kg2 {[%clk 0:01:27.3]}
26... Qe1 {[%clk 0:00:34.8]} 27. Bf4 {[%clk 0:01:13.7]} 27... Qe2+ {[%clk
0:00:34.1]} 28. Kg3 {[%clk 0:01:07.5]} 28... Qe3+ {[%clk 0:00:28.8]} 29. Kg4
{[%clk 0:01:07.9]} 29... Qe2+ {[%clk 0:00:20.4]} 30. Kg3 {[%clk 0:01:08]} 30...
Qe3+ {[%clk 0:00:20.7]} 31. Kg4 {[%clk 0:01:08.1]} 31... Qe2+ {[%clk 0:00:21.1]}
32. Kg3 {[%clk 0:01:08.3]} 1/2-1/2

[Event "Early-Titled-Tuesday-Blitz-January-16-2024"]
[Site "Chess.com"]
[Date "2024.01.16"]
[Round "9"]
[White "platy3"]
[Black "Oleksandr_Bortnyk"]
[Result "0-1"]
[WhiteElo "2893"]
[BlackElo "3096"]
[TimeControl "180+1"]
[EndTime "9:46:42 PST"]
[Termination "Oleksandr_Bortnyk won by resignation"]

1. Nf3 {[%clk 0:03:00.9]} 1... Nf6 {[%clk 0:02:55.1]} 2. b3 {[%clk 0:02:58.2]}
2... g6 {[%clk 0:02:50.3]} 3. Bb2 {[%clk 0:02:57.7]} 3... Bg7 {[%clk 0:02:51.2]}
4. g3 {[%clk 0:02:57.3]} 4... b6 {[%clk 0:02:51.5]} 5. Bg2 {[%clk 0:02:57.6]}
5... Bb7 {[%clk 0:02:52.2]} 6. O-O {[%clk 0:02:58]} 6... O-O {[%clk 0:02:52.9]}
7. c4 {[%clk 0:02:57.9]} 7... e6 {[%clk 0:02:53.5]} 8. d4 {[%clk 0:02:57]} 8...
d5 {[%clk 0:02:54]} 9. Nbd2 {[%clk 0:02:54.3]} 9... Na6 {[%clk 0:02:54.2]} 10.
Rc1 {[%clk 0:02:53.8]} 10... Qe7 {[%clk 0:02:54.2]} 11. e3 {[%clk 0:02:48]}
11... c5 {[%clk 0:02:53.7]} 12. Qe2 {[%clk 0:02:48.1]} 12... Rfd8 {[%clk
0:02:53.1]} 13. cxd5 {[%clk 0:02:47.7]} 13... exd5 {[%clk 0:02:48]} 14. Rfd1
{[%clk 0:02:44.7]} 14... Rac8 {[%clk 0:02:46.3]} 15. Ne5 {[%clk 0:02:43.2]}
15... Nb4 {[%clk 0:02:44]} 16. a3 {[%clk 0:02:42]} 16... Ba6 {[%clk 0:02:44.3]}
17. Qe1 {[%clk 0:02:29.2]} 17... Nd3 {[%clk 0:02:42.8]} 18. Nxd3 {[%clk
0:02:29.4]} 18... Bxd3 {[%clk 0:02:43.7]} 19. dxc5 {[%clk 0:02:12.3]} 19... bxc5
{[%clk 0:02:44.6]} 20. Nf3 {[%clk 0:02:07.5]} 20... Be4 {[%clk 0:02:43.1]} 21.
Qa5 {[%clk 0:02:07.2]} 21... h5 {[%clk 0:02:19.9]} 22. b4 {[%clk 0:01:58.9]}
22... c4 {[%clk 0:02:09.4]} 23. Bd4 {[%clk 0:01:54.8]} 23... Ng4 {[%clk
0:02:03.9]} 24. Qxa7 {[%clk 0:01:33.2]} 24... Qxa7 {[%clk 0:02:02.2]} 25. Bxa7
{[%clk 0:01:33.3]} 25... Bb2 {[%clk 0:02:03.1]} 26. b5 {[%clk 0:01:17.3]} 26...
c3 {[%clk 0:01:44.6]} 27. Nd4 {[%clk 0:01:10.7]} 27... c2 {[%clk 0:01:39.3]} 28.
Re1 {[%clk 0:01:09]} 28... Bxc1 {[%clk 0:01:26.6]} 29. Rxc1 {[%clk 0:01:09]}
29... Ne5 {[%clk 0:01:25.6]} 30. b6 {[%clk 0:00:41.8]} 30... Bxg2 {[%clk
0:01:17.5]} 31. Kxg2 {[%clk 0:00:30.8]} 31... Nd3 {[%clk 0:01:17.3]} 0-1

[Event "Early-Titled-Tuesday-Blitz-January-16-2024"]
[Site "Chess.com"]
[Date "2024.01.16"]
[Round "9"]
[White "AryanTari"]
[Black "FormerProdigy"]
[Result "0-1"]
[WhiteElo "2937"]
[BlackElo "3018"]
[TimeControl "180+1"]
[EndTime "9:46:46 PST"]
[Termination "FormerProdigy won by resignation"]

1. e4 {[%clk 0:03:00.9]} 1... c6 {[%clk 0:03:00.1]} 2. d4 {[%clk 0:02:59.1]}
2... d5 {[%clk 0:03:01]} 3. exd5 {[%clk 0:03:00]} 3... cxd5 {[%clk 0:03:01.9]}
4. Bd3 {[%clk 0:03:00.3]} 4... Nc6 {[%clk 0:03:01.1]} 5. c3 {[%clk 0:02:59.8]}
5... Nf6 {[%clk 0:03:00.8]} 6. Bf4 {[%clk 0:02:56.9]} 6... Bg4 {[%clk
0:02:56.4]} 7. Qb3 {[%clk 0:02:56.5]} 7... Qd7 {[%clk 0:02:56.9]} 8. Nd2 {[%clk
0:02:56.3]} 8... e6 {[%clk 0:02:57.4]} 9. Ngf3 {[%clk 0:02:55]} 9... Bd6 {[%clk
0:02:57.8]} 10. Bxd6 {[%clk 0:02:53.7]} 10... Qxd6 {[%clk 0:02:58.7]} 11. O-O
{[%clk 0:02:53.6]} 11... O-O {[%clk 0:02:58.9]} 12. Rae1 {[%clk 0:02:52.8]}
12... Rfb8 {[%clk 0:02:46.2]} 13. Ne5 {[%clk 0:02:50.7]} 13... b5 {[%clk
0:02:39.1]} 14. Qc2 {[%clk 0:02:34.6]} 14... Bh5 {[%clk 0:02:37.6]} 15. b4
{[%clk 0:02:04.1]} 15... a5 {[%clk 0:02:27.5]} 16. a3 {[%clk 0:02:04.4]} 16...
axb4 {[%clk 0:02:14.6]} 17. axb4 {[%clk 0:02:05.3]} 17... Bg6 {[%clk 0:02:14.4]}
18. Nxg6 {[%clk 0:02:02.1]} 18... hxg6 {[%clk 0:02:15.3]} 19. Nb3 {[%clk
0:02:01.3]} 19... e5 {[%clk 0:02:14]} 20. dxe5 {[%clk 0:01:56.9]} 20... Nxe5
{[%clk 0:02:14.9]} 21. Nd4 {[%clk 0:01:57.3]} 21... Nfg4 {[%clk 0:02:03.8]} 22.
g3 {[%clk 0:01:28.6]} 22... Nxd3 {[%clk 0:01:45.2]} 23. Qxd3 {[%clk 0:01:28.5]}
23... Ne5 {[%clk 0:01:46.1]} 24. Qe2 {[%clk 0:01:22.5]} 24... Nc4 {[%clk
0:01:43.8]} 25. Ra1 {[%clk 0:01:18.1]} 25... Qd7 {[%clk 0:01:40.1]} 26. Rxa8
{[%clk 0:01:10.8]} 26... Rxa8 {[%clk 0:01:41]} 27. Re1 {[%clk 0:01:10.7]} 27...
Nd6 {[%clk 0:01:28.4]} 28. Qd3 {[%clk 0:00:43.9]} 28... Re8 {[%clk 0:01:21.2]}
29. Rxe8+ {[%clk 0:00:41.9]} 29... Qxe8 {[%clk 0:01:22.1]} 30. f3 {[%clk
0:00:27.9]} 30... Qe1+ {[%clk 0:01:18.7]} 31. Kg2 {[%clk 0:00:28.2]} 31... Nc4
{[%clk 0:01:17.2]} 32. Nxb5 {[%clk 0:00:26]} 32... Ne3+ {[%clk 0:01:16.7]} 33.
Kh3 {[%clk 0:00:26.2]} 33... Qf2 {[%clk 0:01:15.7]} 0-1

[Event "Early-Titled-Tuesday-Blitz-January-16-2024"]
[Site "Chess.com"]
[Date "2024.01.16"]
[Round "9"]
[White "topce"]
[Black "missponyo10"]
[Result "1-0"]
[WhiteElo "2371"]
[BlackElo "2258"]
[TimeControl "180+1"]
[EndTime "9:46:47 PST"]
[Termination "topce won by resignation"]

1. e4 {[%clk 0:03:00.9]} 1... c5 {[%clk 0:02:53.6]} 2. Nf3 {[%clk 0:03:00.4]}
2... d6 {[%clk 0:02:53.6]} 3. Bb5+ {[%clk 0:02:57.4]} 3... Bd7 {[%clk
0:02:52.8]} 4. a4 {[%clk 0:02:56.3]} 4... Nc6 {[%clk 0:02:49.5]} 5. O-O {[%clk
0:02:55.4]} 5... g6 {[%clk 0:02:49.7]} 6. Re1 {[%clk 0:02:54.6]} 6... Bg7 {[%clk
0:02:49.5]} 7. c3 {[%clk 0:02:52.5]} 7... Nf6 {[%clk 0:02:48.6]} 8. d4 {[%clk
0:02:49.2]} 8... cxd4 {[%clk 0:02:48]} 9. cxd4 {[%clk 0:02:50.1]} 9... O-O
{[%clk 0:02:47.2]} 10. Nc3 {[%clk 0:02:47]} 10... a6 {[%clk 0:02:33.3]} 11. Bf1
{[%clk 0:02:45.6]} 11... Rc8 {[%clk 0:02:27.9]} 12. h3 {[%clk 0:02:45.7]} 12...
Qc7 {[%clk 0:02:24.8]} 13. Bg5 {[%clk 0:02:34.1]} 13... e6 {[%clk 0:02:22.7]}
14. Rc1 {[%clk 0:02:30.3]} 14... Qb6 {[%clk 0:02:16.4]} 15. Qd2 {[%clk
0:02:26.7]} 15... Na5 {[%clk 0:02:12.6]} 16. Rb1 {[%clk 0:02:15.8]} 16... Nb3
{[%clk 0:02:10.6]} 17. Qf4 {[%clk 0:02:15.5]} 17... Nh5 {[%clk 0:02:08]} 18. Qe3
{[%clk 0:02:11.6]} 18... Nxd4 {[%clk 0:02:07.1]} 19. Kh1 {[%clk 0:02:03]} 19...
e5 {[%clk 0:02:05.8]} 20. Nd5 {[%clk 0:01:58.1]} 20... Qa5 {[%clk 0:01:56.2]}
21. Ne7+ {[%clk 0:01:47.3]} 21... Kh8 {[%clk 0:01:56.4]} 22. Nxc8 {[%clk
0:01:41.1]} 22... Bxc8 {[%clk 0:01:53.2]} 23. Nxd4 {[%clk 0:01:38.5]} 23... exd4
{[%clk 0:01:52.6]} 24. Qd2 {[%clk 0:01:32.3]} 24... Qxa4 {[%clk 0:01:49.6]} 25.
Rbc1 {[%clk 0:01:22.5]} 25... Qd7 {[%clk 0:01:40.6]} 26. Bc4 {[%clk 0:01:17]}
26... f6 {[%clk 0:01:34.6]} 27. Bh6 {[%clk 0:01:13.2]} 27... g5 {[%clk 0:01:31]}
28. Bxg7+ {[%clk 0:01:12.6]} 28... Kxg7 {[%clk 0:01:31.9]} 29. Qxd4 {[%clk
0:01:10.8]} 29... Nf4 {[%clk 0:01:31.8]} 30. Bf1 {[%clk 0:01:09]} 30... h5
{[%clk 0:01:29.9]} 31. Red1 {[%clk 0:01:08.3]} 31... Rd8 {[%clk 0:01:26]} 32.
Qc3 {[%clk 0:00:59.1]} 32... g4 {[%clk 0:01:18.4]} 33. Qc7 {[%clk 0:00:50.2]}
33... gxh3 {[%clk 0:01:12.7]} 34. Qxd7+ {[%clk 0:00:48.2]} 34... Bxd7 {[%clk
0:01:09.4]} 35. g3 {[%clk 0:00:48.7]} 35... Ne6 {[%clk 0:01:06.1]} 36. Rxd6
{[%clk 0:00:48.4]} 36... Kf7 {[%clk 0:01:04.9]} 37. Rcd1 {[%clk 0:00:47.2]}
37... Ke7 {[%clk 0:01:04.7]} 38. Bxh3 {[%clk 0:00:47.2]} 38... Bc8 {[%clk
0:01:04.2]} 39. Rxd8 {[%clk 0:00:45.8]} 39... Nxd8 {[%clk 0:01:05.1]} 40. Bxc8
{[%clk 0:00:45.5]} 1-0